bitfinex-derivatives/quotes_ETHF0:USTF0_20251006
["timestamp","ask_amount","ask_price","bid_price","bid_amount"]
[1759766808611,1.13406731,4680.2,4680.1,0.9563]
[1759766809002,1.13406731,4680.2,4680.1,1.34071]
[1759766809203,1.38986731,4680.2,4680.1,0.38441]
[1759766810011,1.38986731,4680.2,4680.1,0.65641]
[1759766811316,1.38986731,4680.2,4680.1,0.38441]
[1759766811703,1.38986731,4680.2,4680.1,0.65641]
[1759766811903,1.38986731,4680.2,4680.1,0.38441]
[1759766815309,1.38986731,4680.2,4679.3,0.4071]
[1759766815502,0.9163,4679.4,4679.3,0.272]
[1759766815706,1.38986731,4679.4,4679.3,0.65648]
[1759766815904,1.38986731,4679.4,4679.3,0.38448]
[1759766816306,1.38986731,4679.4,4679.3,0.65648]
[1759766817514,1.13406731,4679.4,4679.3,1.34078]
[1759766817910,1.38986731,4679.4,4679.3,1.34078]
[1759766819224,1.13406731,4679.4,4679.3,1.34078]
[1759766820325,1.38986731,4679.4,4679.3,1.34078]
[1759766820825,1.3923464,4679.4,4679.3,1.34078]
[1759766821819,0.4760464,4679.4,4679.3,6.34078]
[1759766822020,1.7002799,4680.5,4680.3,0.65639]
[1759766822021,0.9163,4680.4,4680.3,0.65639]
[1759766822315,1.77682055,4680.4,4680.3,0.38439]
[1759766822717,1.39243055,4680.4,4680.3,0.38439]
[1759766823329,1.77682055,4680.4,4680.3,0.38439]
[1759766823827,1.39243055,4680.4,4680.3,0.38439]
[1759766824926,1.39243055,4680.4,4680.3,0.65639]
[1759766825121,1.39243055,4680.4,4680.3,1.34069]
[1759766825518,1.39243055,4680.4,4680.3,0.93359]
[1759766825721,1.39243055,4680.4,4680.3,1.34069]
[1759766826229,1.39243055,4680.4,4680.3,0.93359]
[1759766826630,0.47613055,4680.4,4680.3,1.34069]
[1759766826926,0.47613055,4680.4,4680.3,6.34069]
[1759766827129,0.44747,4680.4,4680.3,6.34069]
[1759766827925,0.9163,4681.2,4681.1,0.38433]
[1759766828730,0.9163,4680.7,4680.6,0.65637]
[1759766836337,0.9163,4680.7,4680.6,0.38437]
[1759766837631,0.5231,4679.7,4679.6,0.272]
[1759766837937,0.165,4680.0,4679.9,1.33253]
[1759766837938,0.2673,4680.0,4679.9,1.33253]
[1759766838835,0.6563,4680.0,4679.9,1.33253]
[1759766839939,0.9093,4680.4,4680.3,0.5462]
[1759766840138,1.3786565,4680.4,4680.3,0.93059]
[1759766840531,1.3786565,4680.4,4680.3,0.38439]
[1759766842038,1.3786565,4680.4,4680.2,0.3844]
[1759766842237,1.3786565,4680.3,4680.2,0.3844]
[1759766847242,1.3786565,4680.3,4679.7,0.3865]
[1759766847439,0.9093,4679.8,4679.7,0.38444]
[1759766847637,1.12584118,4679.8,4679.7,1.31714]
[1759766847842,0.46894118,4679.8,4679.7,1.31714]
[1759766849441,0.9093,4680.2,4680.1,0.9327]
[1759766849639,1.37852196,4680.2,4680.1,0.9327]
[1759766850333,1.37852196,4680.2,4680.1,1.31711]
[1759766851038,1.37852196,4680.2,4680.1,0.93061]
[1759766851239,1.76292196,4680.2,4680.1,0.93061]
[1759766851453,0.4341,4679.5,4679.4,0.93067]
[1759766851637,1.15584334,4679.5,4679.4,0.66167]
[1759766851837,1.15584334,4679.5,4679.4,0.38447]
[1759766852040,1.54484334,4679.5,4679.4,0.38447]
[1759766852238,1.54484334,4679.5,4679.0,1.34775]
[1759766852239,1.54484334,4679.5,4679.3,0.38447]
[1759766852542,1.54484334,4679.5,4679.3,0.66167]
[1759766852543,1.37864334,4679.4,4679.3,0.66167]
[1759766853137,0.38448,4679.3,4678.1,1.34793]
[1759766853338,0.9093,4678.2,4678.1,1.31728]
[1759766853944,0.9093,4678.2,4678.1,0.2772]
[1759766854143,1.0755,4678.0,4677.3,0.3865]
[1759766854341,0.6865,4678.0,4677.8,0.3846]
[1759766854538,0.38720837,4678.2,4677.8,0.54798032]
[1759766854539,0.389,4678.1,4677.8,0.54798032]
[1759766854739,0.9093,4677.9,4677.8,1.05008032]
[1759766855252,0.9093,4677.9,4677.8,0.00178032]
[1759766856548,0.9093,4677.9,4677.8,0.27348032]
[1759766857349,0.9093,4677.9,4677.8,0.53708032]
[1759766857541,0.9093,4677.9,4677.8,0.92338032]
[1759766857741,0.9093,4677.9,4677.8,0.53708032]
[1759766858949,0.9093,4677.9,4677.8,0.00178032]
[1759766861352,3.74979407,4677.9,4677.8,0.00178032]
[1759766861649,8.74979407,4677.9,4677.8,0.00178032]
[1759766861844,9.21954935,4677.9,4677.8,0.00178032]
[1759766862444,0.2657,4676.4,4676.3,0.3863]
[1759766862649,0.6563,4676.3,4676.2,0.77103]
[1759766862849,0.6563,4676.3,4676.2,1.30633]
[1759766863049,0.2657,4676.3,4676.2,1.30633]
[1759766863448,0.914,4676.7,4676.6,0.6564]
[1759766864046,0.914,4676.7,4676.6,0.3847]
[1759766864350,0.914,4676.7,4676.6,0.6564]
[1759766864555,0.914,4676.7,4676.6,0.3847]
[1759766865750,0.914,4676.7,4676.2,0.00166434]
[1759766865950,0.914,4676.3,4676.2,0.38639434]
[1759766866856,0.914,4676.3,4676.2,0.65809434]
[1759766869155,0.914,4676.3,4676.2,0.38639434]
[1759766869359,0.914,4676.3,4676.2,0.65019434]
[1759766871757,0.914,4676.3,4676.2,0.38639434]
[1759766873055,0.914,4676.3,4676.2,0.65019434]
[1759766874859,0.914,4676.3,4676.2,0.38639434]
[1759766875864,0.914,4676.3,4676.2,0.65019434]
[1759766877764,0.914,4676.3,4676.2,0.38639434]
[1759766878262,0.914,4676.3,4675.1,1.92411]
[1759766878263,0.1523,4675.5,4675.4,0.3848]
[1759766878465,0.6725,4675.5,4675.4,1.2922]
[1759766878761,0.6725,4675.5,4675.4,0.2638]
[1759766878962,1.0661,4675.5,4675.4,0.2638]
[1759766879164,1.0661,4675.5,4675.4,0.26579633]
[1759766881168,1.53622112,4675.5,4675.4,0.51839633]
[1759766881366,1.53622112,4675.5,4675.4,0.90939633]
[1759766882465,1.53622112,4675.5,4675.4,0.51839633]
[1759766882664,1.53622112,4675.5,4675.4,0.26579633]
[1759766883165,1.53622112,4675.5,4675.4,0.90319633]
[1759766883372,1.53622112,4675.5,4675.4,0.00199633]
[1759766883760,0.1523,4674.5,4674.3,0.391]
[1759766884068,0.6725,4674.5,4674.4,0.2638]
[1759766884268,1.14307618,4674.5,4674.4,0.2638]
[1759766884470,1.53667618,4674.5,4674.4,0.2638]
[1759766884665,1.53888562,4674.5,4674.4,0.26539675]
[1759766886471,1.53888562,4674.5,4674.4,0.00159675]
[1759766886968,0.9138,4673.4,4673.3,0.38497]
[1759766887271,1.38419419,4673.4,4673.3,0.64877]
[1759766887666,1.38419419,4673.4,4673.3,0.38497]
[1759766887973,1.38419419,4673.4,4673.3,0.00186609]
[1759766888860,1.76915419,4673.4,4673.3,0.00186609]
[1759766889864,1.0661,4673.0,4672.9,0.02140022]
[1759766890065,1.75249419,4673.0,4672.9,0.02140022]
[1759766890974,1.53649419,4673.0,4672.9,0.02376368]
[1759766891165,1.75249419,4673.0,4672.9,0.02376368]
[1759766892670,0.4027,4672.0,4671.9,0.38509]
[1759766892975,1.14289282,4672.0,4671.8,0.38509]
[1759766893171,1.14289282,4672.0,4671.8,0.64889]
[1759766893172,1.38419282,4671.9,4671.8,0.64889]
[1759766893373,1.38419282,4671.9,4671.5,0.38511]
[1759766893374,1.38381357,4671.9,4671.5,0.38511]
[1759766893674,0.9138,4671.1,4671.0,0.2638]
[1759766893875,0.91598256,4671.1,4671.0,0.5164]
[1759766894076,0.91598256,4671.1,4671.0,0.65161179]
[1759766895676,0.91598256,4671.1,4671.0,0.38781179]
[1759766896575,0.91598256,4671.1,4671.0,0.00265179]
[1759766896773,1.38468855,4671.1,4671.0,0.00265179]
[1759766897379,0.91598256,4671.1,4671.0,0.00265179]
[1759766899969,0.91598256,4671.1,4671.0,0.25385179]
[1759766900169,0.00218256,4671.1,4671.0,0.85975179]
[1759766900374,0.64118256,4671.1,4671.0,0.85975179]
[1759766900581,0.88968256,4671.1,4671.0,0.85975179]
[1759766901278,0.64118256,4671.1,4671.0,0.85975179]
[1759766901476,0.00218256,4671.1,4671.0,1.00775179]
[1759766901779,0.88968256,4671.1,4671.0,0.85975179]
[1759766901974,0.88968256,4671.1,4671.0,0.49735179]
[1759766902180,0.88968256,4671.1,4671.0,0.25385179]
[1759766902580,0.88968256,4671.1,4671.0,0.85975179]
[1759766903276,0.88968256,4671.1,4671.0,0.00265179]
[1759766903783,3.70994828,4671.1,4671.0,0.00265179]
[1759766903979,0.1549,4671.0,4670.6,0.38519]
[1759766904186,1.0424,4670.0,4669.9,0.8571]
[1759766904384,1.0424,4670.0,4669.9,1.24235]
[1759766905079,0.8875,4670.0,4669.9,1.24478475]
[1759766905483,1.0424,4670.0,4669.9,0.88238475]
[1759766905982,1.0424,4670.0,4669.9,1.24478475]
[1759766906485,0.8875,4670.0,4669.9,1.24478475]
[1759766906783,0.639,4670.5,4670.4,1.24231]
[1759766907079,0.8875,4670.5,4670.4,1.24231]
[1759766907287,1.0424,4670.5,4670.4,1.24231]
[1759766907788,1.0424,4670.5,4670.4,0.87991]
[1759766908086,0.8875,4670.5,4670.4,1.24231]
[1759766908282,0.8875,4670.5,4670.4,0.87991]
[1759766908481,1.0424,4670.5,4670.4,0.63641]
[1759766909586,1.0424,4670.5,4670.4,0.87991]
[1759766909784,1.0424,4670.5,4670.4,1.24231]
[1759766910286,1.0424,4670.5,4670.4,0.87991]
[1759766910486,1.0424,4670.5,4670.4,0.63641]
[1759766912188,1.0424,4670.5,4670.4,0.38521]
[1759766912382,1.51176315,4670.5,4670.4,0.38521]
[1759766912689,1.0424,4670.0,4669.9,0.00243475]
[1759766912890,1.0424,4670.0,4669.9,0.38768475]
[1759766913289,1.0424,4670.0,4669.9,0.63888475]
[1759766913787,1.0424,4670.0,4669.9,1.24478475]
[1759766914182,0.639,4670.8,4670.7,1.24229]
[1759766914387,1.10920255,4670.8,4670.7,1.24229]
[1759766914981,1.35770255,4670.8,4670.7,0.63639]
[1759766916384,1.35770255,4670.8,4670.5,0.3852]
[1759766916592,0.5033,4670.1,4670.0,0.2404]
[1759766916787,0.73320255,4670.1,4670.0,1.26094]
[1759766917792,1.12330255,4670.1,4670.0,1.26094]
[1759766918992,1.36360255,4670.1,4670.0,1.26094]
[1759766919584,1.36360255,4670.1,4670.0,0.86874]
[1759766919796,1.36360255,4670.1,4670.0,0.4835]
[1759766919999,0.1534,4670.0,4669.9,0.00243475]
[1759766920201,1.51700255,4670.0,4669.9,0.62808475]
[1759766920402,1.51700255,4670.0,4669.9,0.00243475]
[1759766921393,1.51700255,4670.0,4669.9,0.24283475]
[1759766921794,1.51700255,4670.0,4669.9,0.48593475]
[1759766922003,1.12330255,4670.0,4669.9,0.87813475]
[1759766922706,1.36360255,4670.0,4669.9,0.87813475]
[1759766923311,1.12330255,4670.0,4669.9,0.87813475]
[1759766923600,1.51700255,4670.0,4669.9,0.24283475]
[1759766925098,1.51700255,4670.0,4669.9,0.00243475]
[1759766926000,1.68740397,4670.0,4669.9,0.00243475]
[1759766926506,1.68740397,4670.0,4667.9,0.18828664]
[1759766926507,0.8934,4668.8,4668.7,0.62575]
[1759766926803,1.36360255,4668.8,4668.7,0.4835]
[1759766927005,1.3673189,4668.8,4668.7,0.8757]
[1759766927396,1.3673189,4668.8,4668.7,0.87769445]
[1759766928397,0.7369189,4668.8,4668.7,0.87769445]
[1759766928601,0.4739189,4668.8,4668.7,0.87769445]
[1759766929202,1.0924189,4668.8,4668.7,0.87769445]
[1759766930510,0.4739189,4668.8,4668.7,0.87769445]
[1759766932113,0.4739189,4668.8,4668.7,5.87769445]
[1759766932407,0.6185,4669.7,4669.6,1.27028]
[1759766932799,0.8778,4669.7,4669.6,1.27028]
[1759766934106,0.38526,4669.8,4669.6,1.27028]
[1759766934311,0.8778,4669.9,4669.8,0.2498]
[1759766934505,1.26305,4669.9,4669.8,0.4931]
[1759766934707,1.00371,4670.4,4670.3,0.2498]
[1759766935010,0.8778,4670.1,4670.0,0.63504]
[1759766935310,0.8778,4670.1,4670.0,1.27024]
[1759766935703,0.8778,4670.1,4670.0,0.87834]
[1759766935900,0.1479,4670.0,4669.7,0.38526]
[1759766936102,0.3924,4670.5,4670.4,0.2498]
[1759766936302,1.0257,4670.5,4670.4,0.2498]
[1759766936502,0.6517,4669.5,4669.4,0.2498]
[1759766936712,1.0257,4669.5,4669.4,1.27029]
[1759766937102,0.8345,4669.8,4669.7,0.87837]
[1759766937501,0.8345,4669.8,4669.7,1.27027]
[1759766937703,0.6185,4669.8,4669.7,1.27027]
[1759766938112,0.38521,4670.4,4669.9,0.4931]
[1759766938310,0.8778,4670.3,4670.2,1.27022]
[1759766938506,0.00218256,4671.1,4670.6,0.885]
[1759766938708,1.0257,4671.0,4670.9,0.63497]
[1759766938906,1.0257,4671.0,4670.9,0.87827]
[1759766939108,1.0257,4671.0,4670.9,1.27017]
[1759766939308,0.374,4671.0,4670.9,1.27017]
[1759766939613,0.24668256,4671.1,4671.0,0.885]
[1759766939911,0.62068256,4671.1,4671.0,0.885]
[1759766940510,0.87998256,4671.1,4671.0,0.4931]
[1759766940710,0.8778,4670.9,4670.8,0.87827]
[1759766940912,0.8778,4670.9,4670.8,1.27017]
[1759766941215,0.00218256,4671.1,4671.0,1.27016]
[1759766941411,0.62068256,4671.1,4671.0,1.27016]
[1759766941816,0.87998256,4671.1,4671.0,1.27016]
[1759766942215,0.2445,4669.8,4669.6,0.3919]
[1759766942418,0.5038,4669.7,4669.6,0.38528]
[1759766942615,0.1479,4670.0,4668.9,0.96334]
[1759766942616,0.6517,4669.5,4669.4,0.38529]
[1759766943017,1.0257,4669.5,4669.4,0.38529]
[1759766943425,1.0257,4669.5,4669.4,0.63509]
[1759766943717,0.7812,4669.5,4668.7,0.00199445]
[1759766943925,0.6185,4668.9,4668.8,1.27034]
[1759766944723,0.2445,4668.9,4668.8,1.27034]
[1759766945219,0.5038,4668.9,4668.8,0.63514]
[1759766945422,0.8778,4668.9,4668.8,0.87844]
[1759766945617,0.8778,4668.9,4668.8,1.27034]
[1759766946316,0.8778,4668.9,4668.8,0.38534]
[1759766949818,1.35107663,4668.9,4668.8,0.38534]
[1759766950019,1.35107663,4668.9,4668.8,0.63514]
[1759766951232,0.8778,4668.9,4668.8,0.38534]
[1759766951525,1.35087494,4668.9,4668.8,0.38534]
[1759766951726,1.73621494,4668.9,4668.7,0.00199445]
[1759766951919,1.26314,4668.9,4668.7,0.00199445]
[1759766952626,0.97685115,4668.8,4668.7,0.00199445]
[1759766952828,1.35085115,4668.8,4668.7,0.00199445]
[1759766953427,0.88918,4668.3,4668.2,0.01691258]
[1759766953730,1.41111,4668.0,4667.9,0.02142314]
[1759766953922,1.49875115,4668.0,4667.9,0.02142314]
[1759766954322,1.49875115,4668.0,4667.9,0.02316941]
[1759766956224,0.2445,4667.7,4667.1,0.38548]
[1759766956422,1.0257,4667.5,4667.4,0.38546]
[1759766956626,1.0257,4667.5,4667.4,0.63526]
[1759766956827,1.0257,4667.5,4667.4,0.87856]
[1759766957230,1.02832619,4667.5,4667.4,0.88023223]
[1759766957529,1.02832619,4667.5,4667.4,0.38713223]
[1759766957730,1.02832619,4667.5,4667.4,0.00167223]
[1759766959627,1.02832619,4667.5,4667.4,0.25767223]
[1759766960430,1.02832619,4667.5,4667.4,0.00167223]
[1759766961729,1.02832619,4667.5,4667.4,0.25767223]
[1759766962032,0.88042619,4667.5,4667.4,0.89257223]
[1759766962332,1.02402619,4667.5,4667.4,0.50977223]
[1759766962827,0.24712619,4667.5,4667.4,0.89257223]
[1759766963338,0.62782619,4667.5,4667.4,0.89257223]
[1759766963523,0.88292619,4667.5,4667.4,0.89257223]
[1759766964734,1.02652619,4667.5,4667.4,0.00167223]
[1759766965030,0.88292619,4667.5,4667.4,0.89257223]
[1759766965231,0.00262619,4667.5,4667.4,0.89257223]
[1759766966138,0.633,4669.0,4668.9,1.27623]
[1759766966328,1.0317,4669.0,4668.4,0.38537]
[1759766966627,1.0317,4669.0,4668.2,0.3828]
[1759766966628,1.0317,4668.5,4667.7,0.3828]
[1759766966834,1.0317,4668.5,4668.3,0.38538]
[1759766967027,0.5074,4668.2,4668.1,0.38539]
[1759766967228,0.8881,4668.2,4668.1,0.38539]
[1759766967525,0.8881,4668.2,4667.5,0.3828]
[1759766967733,0.8881,4668.2,4668.0,0.38541]
[1759766967934,1.2735,4668.2,4668.0,0.38541]
[1759766968332,0.8881,4668.2,4668.0,0.38541]
[1759766968826,0.14637032,4668.5,4668.0,1.27631]
[1759766968827,0.3807,4668.1,4668.0,1.27631]
[1759766969031,0.39867032,4668.5,4668.4,1.27627]
[1759766969232,0.65377032,4668.5,4668.4,0.89347]
[1759766969434,1.03447032,4668.5,4668.4,0.5081]
[1759766971126,0.89087032,4668.5,4668.4,0.8909]
[1759766971331,0.63577032,4668.5,4668.4,0.8909]
[1759766971533,1.03447032,4668.5,4668.3,0.38538]
[1759766971731,1.41984032,4668.5,4668.3,0.38538]
[1759766972035,1.03447032,4668.5,4668.3,0.38538]
[1759766972337,1.36810807,4668.4,4668.3,0.38538]
[1759766972733,1.0317,4668.0,4667.9,0.256]
[1759766972935,1.0317,4668.0,4667.9,0.38542]
[1759766973332,1.0317,4668.0,4667.9,0.64142]
[1759766973629,0.8881,4668.0,4667.9,1.27632]
[1759766973834,1.0317,4668.0,4667.9,0.89352]
[1759766974931,0.38542,4667.9,4667.7,0.38543]
[1759766975130,1.3760216,4667.8,4667.7,0.38543]
[1759766975530,1.3760216,4667.8,4667.7,0.64143]
[1759766975732,1.3760216,4667.8,4667.7,0.87493]
[1759766976030,1.3760216,4667.8,4667.7,1.24063]
[1759766976232,1.1209216,4667.8,4667.7,1.24063]
[1759766976429,0.4879216,4667.8,4667.7,1.24063]
[1759766977026,0.99657032,4668.5,4668.4,0.38537]
[1759766977236,1.34115769,4668.5,4668.4,1.22177]
[1759766977434,1.48315769,4668.5,4668.4,0.85607]
[1759766978234,1.48315769,4668.5,4668.4,0.38537]
[1759766979331,1.48315769,4668.5,4668.4,0.62257]
[1759766979536,1.34115769,4668.5,4668.4,1.22177]
[1759766979733,1.48315769,4668.5,4668.4,0.85607]
[1759766980332,1.48315769,4668.5,4668.4,0.38537]
[1759766980933,1.48315769,4668.5,4668.4,0.62257]
[1759766981734,1.48315769,4668.5,4668.4,0.85607]
[1759766981933,0.73045769,4668.5,4668.4,1.22177]
[1759766982536,0.49095769,4668.5,4668.4,1.22177]
[1759766983035,0.49095769,4668.5,4668.4,6.22177]
[1759766983340,0.73045769,4668.5,4668.4,1.22177]
[1759766983541,1.08725769,4668.5,4668.4,1.22177]
[1759766983837,0.49095769,4668.5,4668.4,1.22177]
[1759766984043,0.49095769,4668.5,4668.4,6.22177]
[1759766986444,1.48315769,4668.5,4668.4,0.85607]
[1759766987240,0.87881,4668.1,4668.0,0.38541]
[1759766987444,1.33838737,4668.1,4668.0,0.38541]
[1759766987639,1.33838737,4668.1,4668.0,0.85611]
[1759766988253,1.33838737,4668.1,4668.0,1.23361]
[1759766988545,0.37107032,4668.5,4668.4,0.38537]
[1759766988753,0.24337032,4668.5,4668.4,1.25707]
[1759766989151,0.49153524,4668.5,4668.4,6.25707]
[1759766989353,0.6089,4669.3,4669.2,1.25701]
[1759766989549,0.6089,4669.5,4669.4,0.8717]
[1759766990352,0.61120088,4669.5,4669.4,0.8717]
[1759766991353,0.85850088,4669.5,4669.4,0.4942]
[1759766991554,0.99710088,4669.5,4669.4,0.4942]
[1759766991750,0.99710088,4669.5,4669.4,0.2482]
[1759766991954,0.4879,4669.2,4668.6,41.76338]
[1759766992157,0.8562,4668.7,4668.6,0.38536]
[1759766992655,0.3683,4669.4,4668.6,1.3409]
[1759766992857,0.6089,4669.4,4669.3,0.8795]
[1759766993160,0.6089,4669.4,4669.3,1.257]
[1759766993756,0.8562,4669.4,4669.3,1.257]
[1759766994155,0.3683,4669.4,4669.3,1.257]
[1759766994357,0.14090088,4669.5,4669.4,0.8717]
[1759766994358,0.00230088,4669.5,4669.4,0.8717]
[1759766995063,8.8e-07,4669.5,4669.4,5.8717]
[1759766995265,8.8e-07,4669.5,4669.4,46.6717]
[1759766996262,0.8562,4670.7,4670.6,0.87939]
[1759766996462,0.8562,4670.7,4670.6,1.25689]
[1759766997055,0.85837962,4670.7,4670.6,1.25689]
[1759766997256,0.00217962,4670.7,4670.6,1.25689]
[1759766997460,0.00217962,4670.7,4670.6,6.25689]
[1759766997659,0.85837962,4670.7,4670.6,0.87939]
[1759766997860,0.00217962,4670.7,4670.6,1.25689]
[1759766998459,0.00217962,4670.7,4670.6,6.25689]
[1759766999360,0.00217962,4670.7,4670.6,47.05689]
[1759767000664,0.00217962,4670.7,4670.6,42.05689]
[1759767001270,0.37047962,4670.7,4670.6,41.67939]
[1759767001570,0.37047962,4670.7,4670.6,1.09539]
[1759767001571,0.85837962,4670.7,4670.6,1.09539]
[1759767002070,0.3683,4670.4,4670.2,0.38522]
[1759767002259,0.1386,4670.5,4670.4,0.38521]
[1759767002465,0.5069,4670.5,4670.4,0.38521]
[1759767003666,0.5069,4670.5,4670.2,0.38522]
[1759767003667,0.3683,4670.4,4670.2,0.38522]
[1759767003868,0.3683,4669.8,4669.7,0.38526]
[1759767004065,0.1386,4670.0,4669.1,1.3408]
[1759767004266,0.75355,4669.9,4669.1,1.3408]
[1759767004564,0.3683,4669.9,4669.1,0.3775]
[1759767004768,0.3683,4669.7,4669.5,0.38528]
[1759767004965,0.1386,4670.0,4669.5,0.38528]
[1759767005167,0.3683,4669.8,4669.7,0.38527]
[1759767005568,0.3683,4669.8,4669.1,0.3775]
[1759767005870,0.3853,4669.4,4669.1,0.38532]
[1759767006070,0.3683,4669.3,4669.2,0.3853]
[1759767006971,0.1386,4670.0,4669.2,0.3853]
[1759767006972,0.89214,4670.0,4669.8,0.38526]
[1759767007161,0.3683,4669.9,4669.8,0.38526]
[1759767010276,0.3683,4669.9,4669.8,0.63346]
[1759767010277,0.6089,4669.9,4669.8,0.63346]
[1759767010574,0.8562,4669.9,4669.8,0.63346]
[1759767012468,0.8562,4669.9,4669.8,0.38526]
[1759767012769,0.8562,4669.9,4669.1,0.216]
[1759767012770,0.8562,4669.7,4669.6,0.38527]
[1759767013362,0.9948,4669.5,4669.4,0.2482]
[1759767013570,0.9948,4669.5,4669.4,0.38529]
[1759767013765,0.8562,4668.9,4668.8,0.2482]
[1759767013972,0.8562,4668.9,4668.8,0.63354]
[1759767014368,1.24153,4668.9,4668.4,0.216]
[1759767014568,1.24153,4668.9,4668.7,0.38535]
[1759767014772,0.8562,4668.8,4668.7,0.63355]
[1759767014975,0.8562,4668.8,4668.7,0.87955]
[1759767015276,0.8562,4668.8,4668.7,0.38535]
[1759767017773,0.2406,4668.1,4668.0,0.7399]
[1759767017979,0.6089,4668.1,4668.0,1.47311]
[1759767018475,0.1386,4669.0,4667.5,40.9426]
[1759767018675,0.4684,4668.6,4668.5,0.38536]
[1759767018873,0.8344,4668.6,4668.5,0.38536]
[1759767019070,0.2411,4667.8,4667.7,0.4909]
[1759767019375,0.8344,4667.8,4667.7,0.4909]
[1759767019581,0.8344,4667.8,4667.7,0.87633]
[1759767020574,0.8344,4667.8,4667.7,1.24513]
[1759767021682,0.8344,4667.8,4667.7,0.87633]
[1759767022377,0.8344,4667.8,4667.7,0.63053]
[1759767022582,0.8344,4667.8,4667.7,0.38543]
[1759767022777,0.8344,4667.8,4667.7,0.63053]
[1759767023284,0.8344,4667.8,4667.7,0.38543]
[1759767024382,0.8344,4667.8,4667.7,0.63053]
[1759767024682,0.8344,4667.8,4667.7,0.87633]
[1759767026282,0.4684,4667.6,4667.5,0.63054]
[1759767026479,0.3799,4667.5,4667.4,0.00167223]
[1759767026683,0.9732,4667.5,4667.4,0.00167223]
[1759767026883,0.9732,4667.5,4667.4,0.24677223]
[1759767028882,0.9732,4667.5,4667.4,0.63223223]
[1759767029381,0.9732,4667.5,4667.4,0.38713223]
[1759767029783,0.9732,4667.5,4667.4,0.63223223]
[1759767029984,0.8344,4667.5,4667.4,1.24683223]
[1759767030281,0.6071,4667.5,4667.4,1.24683223]
[1759767030586,0.8344,4667.8,4667.7,0.87633]
[1759767031387,1.21982,4667.8,4667.7,0.87633]
[1759767031688,0.8344,4667.8,4667.7,0.87633]
[1759767032284,0.6071,4667.8,4667.7,1.24513]
[1759767032478,0.8344,4667.8,4667.7,1.24513]
[1759767032675,0.8344,4667.8,4667.7,0.87633]
[1759767033082,0.8344,4667.8,4667.7,0.63053]
[1759767033281,1.21982,4667.8,4667.7,0.38543]
[1759767033478,0.9732,4667.5,4667.4,0.00167223]
[1759767035285,0.9732,4667.5,4667.4,0.49257223]
[1759767035486,0.9732,4667.5,4667.4,0.85157223]
[1759767036087,0.9501,4668.0,4667.9,0.2353]
[1759767036290,1.43700351,4668.0,4667.9,0.62072]
[1759767036886,1.43700351,4668.0,4667.9,0.84852]
[1759767037287,1.43700351,4668.0,4667.9,1.20752]
[1759767037683,1.43700351,4668.0,4667.9,0.62072]
[1759767038397,0.9501,4668.0,4667.9,1.20752]
[1759767038791,0.9501,4668.0,4667.9,0.84852]
[1759767041093,0.83491694,4668.0,4667.9,1.20752]
[1759767041300,1.43341694,4668.0,4667.9,1.20752]
[1759767042199,1.43341694,4668.0,4667.9,0.84852]
[1759767042995,1.43341694,4668.0,4667.9,1.20752]
[1759767043395,1.43341694,4668.0,4667.9,0.84852]
[1759767043600,1.81882694,4668.0,4667.9,0.38542]
[1759767043798,1.43341694,4668.0,4667.9,0.38542]
[1759767045795,1.43341694,4668.0,4667.9,0.62072]
[1759767046802,1.43341694,4668.0,4667.9,1.20752]
[1759767047401,1.43341694,4668.0,4667.9,0.38542]
[1759767047710,0.9458,4667.5,4667.3,0.38546]
[1759767048007,1.29891694,4667.4,4667.3,0.62076]
[1759767048199,1.29891694,4667.4,4667.3,1.18926]
[1759767048707,1.30067205,4667.4,4667.3,1.19093587]
[1759767050305,1.30067205,4667.4,4667.3,0.84503587]
[1759767051205,0.48937205,4667.4,4667.3,1.19093587]
[1759767053707,1.09287205,4667.4,4667.3,1.19093587]
[1759767054112,1.32237205,4667.4,4667.3,1.19093587]
[1759767054314,1.32237205,4667.4,4667.3,0.84503587]
[1759767055417,1.32237205,4667.4,4667.3,0.62243587]
[1759767056414,1.32237205,4667.4,4667.3,0.84503587]
[1759767056718,1.32237205,4667.4,4667.3,0.38713587]
[1759767057411,1.32237205,4667.4,4667.3,0.62123587]
[1759767057812,1.32237205,4667.4,4667.3,0.38713587]
[1759767058215,1.70783205,4667.4,4667.3,0.38713587]
[1759767058717,1.32237205,4667.4,4667.3,0.38713587]
[1759767060014,1.32237205,4667.4,4667.3,0.84383587]
[1759767060215,0.95317205,4667.4,4667.3,1.18973587]
[1759767060420,1.32237205,4667.4,4667.3,1.18973587]
[1759767062016,1.32237205,4667.4,4667.3,0.84383587]
[1759767062625,1.32237205,4667.4,4667.3,0.62123587]
[1759767063423,1.32237205,4667.4,4667.3,0.00167587]
[1759767064919,1.32237205,4667.4,4667.3,0.80427587]
[1759767065316,1.32237205,4667.4,4667.3,0.45837587]
[1759767065515,1.32237205,4667.4,4667.3,0.23577587]
[1759767065822,1.32237205,4667.4,4667.3,0.80427587]
[1759767066012,1.32237205,4667.4,4667.3,0.45837587]
[1759767066418,1.32237205,4667.4,4667.3,0.00167587]
[1759767069222,0.6035,4665.7,4665.6,1.18821]
[1759767069521,0.2343,4665.7,4665.6,1.18821]
[1759767069820,0.7447,4666.0,4665.9,1.18818]
[1759767070215,0.7447,4666.0,4665.9,1.19066556]
[1759767070420,0.9742,4666.0,4665.9,1.19066556]
[1759767071529,0.9742,4667.0,4666.9,1.1881]
[1759767071826,1.32108817,4667.0,4666.9,1.1881]
[1759767072325,0.48808817,4667.0,4666.9,6.1881]
[1759767072731,0.60525511,4667.4,4667.3,0.84217]
[1759767072930,1.32294686,4667.4,4667.3,0.38547]
[1759767073424,1.32294686,4667.4,4667.3,0.84217]
[1759767073629,0.72424686,4667.4,4667.3,1.18807]
[1759767073829,1.32294686,4667.4,4667.3,0.84217]
[1759767074631,1.32294686,4667.4,4667.3,0.38547]
[1759767075526,1.32294686,4667.4,4667.3,0.61957]
[1759767076032,1.32294686,4667.4,4667.3,0.38547]
[1759767076932,1.32294686,4667.4,4667.3,0.61957]
[1759767077329,1.32294686,4667.4,4667.2,0.38547]
[1759767077533,0.4638,4666.7,4666.5,0.216]